bitfinex/quotes_SOLUSD_20220227
["timestamp","ask_amount","ask_price","bid_price","bid_amount"]
[1645940101292,3.05350531,87.664,87.567,16.19933957]
[1645940101493,4.565,87.663,87.568,23.4446]
[1645940101692,4.565,87.663,87.569,2.60774511]
[1645940101892,3.05350531,87.664,87.569,2.60774511]
[1645940103994,3.05350531,87.664,87.569,16.05697854]
[1645940105297,3.05350531,87.664,87.569,42.28547426]
[1645940105495,3.05350531,87.664,87.571,2.54940759]
[1645940105896,16.57,87.67,87.573,114.8]
[1645940106097,4.565,87.679,87.574,2.9582225]
[1645940106296,23.887,87.689,87.575,115.05]
[1645940106496,23.887,87.689,87.576,3.0758581]
[1645940106698,23.887,87.689,87.577,0.25]
[1645940106897,2.99174545,87.674,87.577,174.22602011]
[1645940107100,2.99174545,87.674,87.578,5.07547196]
[1645940107301,2.99174545,87.674,87.579,114.8]
[1645940107498,2.99174545,87.674,87.58,2.9237412]
[1645940107902,2.99174545,87.674,87.581,141.02849572]
[1645940108100,2.99174545,87.674,87.583,114.8]
[1645940108399,2.99174545,87.674,87.584,2.48173874]
[1645940108601,2.99174545,87.674,87.585,114.8]
[1645940108900,2.99174545,87.674,87.586,2.51886629]
[1645940109201,2.99174545,87.674,87.588,2.66023096]
[1645940109401,2.99174545,87.674,87.59,114.8]
[1645940109604,2.99174545,87.674,87.592,114.8]
[1645940109801,23.887,87.689,87.592,114.8]
[1645940109802,23.887,87.689,87.593,2.36714064]
[1645940110002,6.18002923,87.708,87.595,2.76750326]
[1645940110304,6.18002923,87.708,87.596,26.33188905]
[1645940110605,1.61602923,87.708,87.598,2.55949618]
[1645940110803,3.59402587,87.707,87.598,2.55949618]
[1645940111003,3.59402587,87.707,87.6,114.8]
[1645940111207,3.59402587,87.707,87.601,2.57256381]
[1645940111403,3.59402587,87.707,87.602,114.8]
[1645940111603,3.59402587,87.707,87.603,2.93114291]
[1645940112004,3.59402587,87.707,87.604,27.73778921]
[1645940112205,3.59402587,87.707,87.605,55.15087986]
[1645940112405,3.59402587,87.707,87.606,2.76692744]
[1645940112806,3.59402587,87.707,87.606,5.51371665]
[1645940113006,3.59402587,87.707,87.607,5.66263203]
[1645940113407,3.59402587,87.707,87.608,2.74678921]
[1645940116518,2.74678921,87.706,87.608,2.74678921]
[1645940117819,4.563,87.705,87.604,24.991]
[1645940118120,1.58098668,87.689,87.604,24.991]
[1645940118328,6.38814552,87.688,87.604,24.991]
[1645940118520,9.13493473,87.688,87.604,24.991]
[1645940118719,12.78582005,87.687,87.604,24.991]
[1645940118926,6.04913576,87.686,87.604,24.991]
[1645940119122,8.79592497,87.686,87.604,24.991]
[1645940119521,2.74678921,87.685,87.604,24.991]
[1645940119721,4.563,87.684,87.604,24.991]
[1645940119923,16.57,87.68,87.604,24.991]
[1645940120122,1.83341945,87.678,87.604,24.991]
[1645940120322,4.564,87.677,87.604,24.991]
[1645940121525,6.8,87.677,87.573,24.23624728]
[1645940121722,6.8,87.677,87.54,57.0891]
[1645940121723,7.31078921,87.676,87.574,24.797]
[1645940121926,8.72992642,87.676,87.574,24.797]
[1645940122122,207.14,87.67,87.574,24.797]
[1645940122324,1.74630557,87.659,87.574,24.797]
[1645940122527,6.15938652,87.658,87.574,24.797]
[1645940122724,4.34117573,87.658,87.574,24.797]
[1645940122924,1.83503975,87.657,87.574,24.797]
[1645940123127,32.72609455,87.657,87.574,24.797]
[1645940123325,4.37335414,87.656,87.574,24.797]
[1645940123526,17.1345,87.65,87.574,24.797]
[1645940123827,0.73179898,87.639,87.574,24.797]
[1645940127229,1.63991278,87.649,87.574,24.797]
[1645940127431,1.36439155,87.664,87.574,24.797]
[1645940127630,1.66366124,87.663,87.574,24.797]
[1645940127831,1.66366124,87.663,87.575,4.565]
[1645940128032,1.54377713,87.662,87.575,4.565]
[1645940128231,2.91074447,87.656,87.575,4.565]
[1645940128632,2.91074447,87.656,87.576,22.54675964]
[1645940128852,2.91074447,87.656,87.577,4.565]
[1645940129255,2.91074447,87.656,87.578,22.54675964]
[1645940129453,2.91074447,87.656,87.58,44.48465858]
[1645940129853,2.91074447,87.656,87.581,4.565]
[1645940131256,2.91074447,87.656,87.58,44.48465858]
[1645940131757,2.91074447,87.656,87.58,67.03141822]
[1645940132658,2.91074447,87.656,87.581,4.565]
[1645940134859,1.73337885,87.669,87.581,4.565]
[1645940135059,1.73337885,87.669,87.581,141.91175964]
[1645940135959,3.0823522,87.668,87.581,141.91175964]
[1645940138162,3.0823522,87.668,87.581,137.34675964]
[1645940138362,1.73337885,87.669,87.581,137.34675964]
[1645940138564,1.73337885,87.669,87.582,4.564]
[1645940138765,22.7288,87.678,87.583,114.8]
[1645940138963,22.7288,87.678,87.584,4.564]
[1645940139163,22.7288,87.678,87.585,114.8]
[1645940139466,2.96730938,87.677,87.586,4.564]
[1645940139665,2.96730938,87.677,87.588,114.8]
[1645940139963,2.96730938,87.677,87.589,4.564]
[1645940142667,4.36241944,87.677,87.588,4.564]
[1645940142965,4.36241944,87.677,87.587,22.96]
[1645940143165,4.36241944,87.677,87.59,114.8]
[1645940143367,4.36241944,87.677,87.592,114.8]
[1645940143368,2.96730938,87.677,87.592,114.8]
[1645940143569,2.96730938,87.677,87.594,114.8]
[1645940143765,2.96730938,87.677,87.593,6.95466545]
[1645940143766,2.96730938,87.677,87.596,114.8]
[1645940143965,2.74678921,87.71,87.595,7.17798211]
[1645940143966,1.39716983,87.703,87.599,2.88593225]
[1645940144166,1.38283678,87.709,87.6,4.563]
[1645940144368,2.74678921,87.686,87.6,4.563]
[1645940144571,28.14426559,87.708,87.601,117.54678921]
[1645940144768,6.43134998,87.707,87.601,130.6012842]
[1645940144968,3.20259678,87.706,87.603,114.8]
[1645940145167,4.563,87.705,87.604,2.80091062]
[1645940145369,4.563,87.705,87.606,2.63455892]
[1645940145568,4.563,87.705,87.607,55.46020904]
[1645940145768,4.563,87.705,87.608,114.8]
[1645940145972,4.563,87.705,87.608,140.52468921]
[1645940146370,4.563,87.705,87.609,2.74678921]
[1645940146770,7.76559678,87.706,87.609,2.74678921]
[1645940147570,3.20259678,87.706,87.609,2.74678921]
[1645940148173,1.72202602,87.704,87.608,22.9779]
[1645940148372,16.57,87.7,87.608,22.9779]
[1645940148573,1.6888295,87.699,87.608,22.9779]
[1645940148771,22.8733,87.698,87.608,22.9779]
[1645940148971,1.37735253,87.697,87.608,22.9779]
[1645940153076,2.74678921,87.696,87.608,22.9779]
[1645940155684,20.07208921,87.696,87.608,22.9779]
[1645940155881,1.79050176,87.695,87.608,22.9779]
[1645940156081,0.72928317,87.679,87.608,22.9779]
[1645940157483,0.72928317,87.679,87.609,114.8]
[1645940164291,0.72928317,87.679,87.608,22.9779]
[1645940164692,24.51308364,87.678,87.608,22.9779]
[1645940165794,1.58044567,87.677,87.608,22.9779]
[1645940180722,9.95044567,87.677,87.608,22.9779]
[1645940182332,1.58044567,87.677,87.608,22.9779]
[1645940183135,0.72928317,87.679,87.608,22.9779]
[1645940183334,0.72928317,87.679,87.609,117.54678921]
[1645940183530,0.72928317,87.679,87.609,2.74678921]
[1645940183732,2.1949344,87.679,87.608,22.9779]
[1645940184731,23.4384,87.678,87.608,22.9779]
[1645940185031,1.79157311,87.677,87.608,22.9779]
[1645940189438,2.74678921,87.676,87.608,22.9779]
[1645940189636,1.79157311,87.677,87.608,22.9779]
[1645940189836,2.74678921,87.676,87.608,22.9779]
[1645940190637,1.79157311,87.677,87.608,22.9779]
[1645940191338,2.74678921,87.676,87.608,22.9779]
[1645940191737,1.79157311,87.677,87.608,22.9779]
[1645940192140,2.74678921,87.676,87.608,22.9779]
[1645940192337,1.79157311,87.677,87.608,22.9779]
[1645940199845,4.53836232,87.677,87.608,22.9779]
[1645940200251,4.563,87.676,87.608,22.9779]
[1645940200651,2.74678921,87.675,87.584,4.563]
[1645940200854,16.57,87.66,87.584,4.563]
[1645940201052,24.57904332,87.659,87.584,4.563]
[1645940201252,6.15131711,87.658,87.584,4.563]
[1645940201458,41.26823858,87.658,87.584,4.563]
[1645940201657,1.69980872,87.657,87.584,4.563]
[1645940201859,1.56125227,87.656,87.584,4.563]
[1645940202056,4.30804148,87.656,87.584,4.563]
[1645940202457,7.31178921,87.655,87.584,4.563]
[1645940202859,2.74678921,87.654,87.584,4.563]
[1645940203063,16.57,87.64,87.584,4.563]
[1645940203262,4.55668436,87.639,87.584,4.563]
[1645940206173,16.57,87.64,87.584,4.563]
[1645940206174,0.21129924,87.64,87.584,4.563]
[1645940206373,2.74678921,87.67,87.585,72.99678921]
[1645940206575,16.57,87.7,87.586,141.50511815]
[1645940206774,46.2107,87.711,87.587,3.32885245]
[1645940206977,46.2107,87.711,87.601,114.8]
[1645940207175,251.87100933,87.722,87.603,114.8]
[1645940207375,251.87100933,87.722,87.604,4.812]
[1645940207676,48.0354,87.748,87.621,114.8]
[1645940207974,6.16509526,87.77,87.631,114.8]
[1645940208176,6.16509526,87.77,87.633,167.05167608]
[1645940208177,3.76865498,87.769,87.633,167.05167608]
[1645940208379,3.76865498,87.769,87.641,114.8]
[1645940208579,3.76865498,87.769,87.651,114.8]
[1645940208776,3.76865498,87.769,87.653,114.8]
[1645940208979,3.76865498,87.769,87.655,114.8]
[1645940209175,3.76865498,87.769,87.661,114.8]
[1645940209377,3.76865498,87.769,87.663,169.71189933]
[1645940209578,3.76865498,87.769,87.665,114.8]
[1645940209776,3.76865498,87.769,87.67,16.57]
[1645940209977,2.74678921,87.768,87.672,2.90795096]
[1645940210577,2.74678921,87.768,87.674,2.59892256]
[1645940210980,3.76865498,87.769,87.675,40.68189395]
[1645940211179,2.74678921,87.78,87.676,119.359]
[1645940211382,0.40422507,87.789,87.676,119.359]
[1645940211383,0.40422507,87.789,87.691,117.51427578]
[1645940211581,0.40422507,87.789,87.692,4.808]
[1645940211782,0.40422507,87.789,87.693,139.0463]
[1645940211979,0.40422507,87.789,87.696,3.02246278]
[1645940212182,0.40422507,87.789,87.711,114.8]
[1645940212381,0.40422507,87.789,87.712,4.558]
[1645940212682,0.40422507,87.789,87.714,2.79068348]
[1645940212882,0.40422507,87.789,87.715,4.808]
[1645940213080,0.40422507,87.789,87.731,114.8]
[1645940213280,0.40422507,87.789,87.733,114.8]
[1645940213481,0.40422507,87.789,87.734,2.68086654]
[1645940214881,0.40422507,87.789,70.21,1.0]
[1645940214882,0.40422507,87.789,87.707,4.557]
[1645940215081,31.96668443,87.788,87.707,4.557]
[1645940215281,31.96668443,87.788,87.679,2.89186171]
[1645940215282,1.65870127,87.787,87.679,2.89186171]
[1645940215485,29.0673857,87.787,87.679,2.89186171]
[1645940215682,28.81928781,87.786,87.68,51.94854719]
[1645940215883,5.92374763,87.785,87.681,2.65236658]
[1645940216085,16.57,87.77,87.681,2.65236658]
[1645940216285,6.0673543,87.769,87.681,2.65236658]
[1645940216485,17.1116,87.76,87.681,2.65236658]
[1645940216686,16.57,87.75,87.681,2.65236658]
[1645940216885,16.57,87.75,87.666,48.1917]
[1645940216886,16.57,87.75,87.667,2.6113312]
[1645940217289,2.74678921,87.749,87.667,58.61602535]
[1645940217487,2.74678921,87.749,87.668,3.00845765]
[1645940217686,4.23492832,87.749,87.633,3.01512896]
[1645940217888,4.23492832,87.749,87.634,4.561]
[1645940218088,2.74678921,87.748,87.634,4.561]
[1645940218491,2.74678921,87.748,87.636,114.8]
[1645940218687,2.74678921,87.748,87.638,114.8]
[1645940218889,2.74678921,87.748,87.64,114.8]
[1645940219089,2.74678921,87.748,87.641,2.80620498]
[1645940220788,4.561,87.747,87.641,2.80620498]
[1645940220989,2.74678921,87.748,87.642,4.561]
[1645940221188,2.74678921,87.746,87.642,4.561]
[1645940221588,1.48813911,87.749,87.643,0.25]
[1645940221989,1.48813911,87.749,87.643,2.51155691]
[1645940222390,1.48813911,87.749,87.643,2.26155691]
[1645940222891,2.74678921,87.748,87.643,2.26155691]
[1645940224292,2.74678921,87.748,87.645,114.8]
[1645940224490,2.74678921,87.748,87.646,2.64620675]
[1645940224890,2.74678921,87.748,87.647,119.611]
[1645940225091,16.57,87.75,87.648,2.56917904]
[1645940225290,16.57,87.76,87.649,119.611]
[1645940225492,16.57,87.76,87.651,114.8]
[1645940225690,16.57,87.76,87.653,114.8]
[1645940225890,16.57,87.76,87.655,114.8]
[1645940226091,16.57,87.76,87.657,114.8]
[1645940226290,16.57,87.76,87.659,114.8]
[1645940226491,16.57,87.76,87.66,2.4698821]
[1645940226691,16.57,87.76,87.661,4.559]
[1645940226891,16.57,87.76,87.663,114.8]
[1645940227093,16.57,87.76,87.664,3.11740328]
[1645940227292,16.57,87.76,87.665,4.559]
[1645940227493,16.57,87.76,87.664,3.11740328]
[1645940227692,16.57,87.76,87.665,4.559]
[1645940228496,16.57,87.76,87.664,3.11740328]
[1645940228497,4.12658551,87.759,87.664,3.11740328]
[1645940228697,2.74678921,87.759,87.664,3.11740328]
[1645940228899,22.06,87.76,87.664,3.11740328]
[1645940229497,39.1717,87.76,87.664,3.11740328]
[1645940230498,22.06,87.76,87.664,3.11740328]
[1645940230702,4.559,87.788,87.666,114.8]
[1645940230899,1.87922227,87.789,87.671,114.8]
[1645940231099,2.74678921,87.788,87.673,114.8]
[1645940231302,2.74678921,87.788,87.675,114.8]
[1645940231504,2.74678921,87.788,87.677,114.8]
[1645940231700,2.74678921,87.788,87.679,114.8]
[1645940231900,2.74678921,87.788,87.681,114.8]
[1645940232100,2.74678921,87.788,87.683,114.8]
[1645940232299,2.74678921,87.788,87.682,4.559]
[1645940232300,2.74678921,87.788,87.685,114.8]
[1645940232499,0.40422507,87.789,87.687,114.8]
[1645940232701,0.40422507,87.789,87.69,131.37]
[1645940232901,1.41805663,87.811,87.692,114.8]
[1645940233102,1.41805663,87.811,87.694,114.8]
[1645940233303,1.41805663,87.811,87.696,114.8]
[1645940233501,17.1017,87.81,87.698,114.8]
[1645940233702,4.558,87.809,87.699,2.95642521]
[1645940234102,4.558,87.809,87.699,5.70321442]
[1645940234302,4.558,87.809,87.7,2.74678921]
[1645940235302,21.6597,87.81,87.701,4.558]
[1645940235601,21.6597,87.81,87.702,2.74678921]
[1645940237203,17.1017,87.81,87.703,114.8]
[1645940237403,17.1017,87.81,87.704,2.77983011]
[1645940237629,17.1017,87.81,87.704,5.52661932]
[1645940237802,17.1017,87.81,87.706,114.8]
[1645940238002,17.1017,87.81,87.706,121.39]
[1645940238203,17.1017,87.81,87.708,114.8]
[1645940238403,17.1017,87.81,87.709,3.08246472]
[1645940238607,17.1017,87.81,87.71,114.8]
[1645940238903,17.1017,87.81,87.711,2.82721298]
[1645940239107,17.1017,87.81,87.711,5.57400219]
[1645940239604,17.1017,87.81,87.712,2.74678921]
[1645940240106,4.558,87.817,87.712,2.74678921]
[1645940240404,3.67816784,87.822,87.716,59.48112739]
[1645940240604,3.67816784,87.822,87.721,114.8]
[1645940240805,3.67816784,87.822,87.72,16.57]
[1645940240806,3.67816784,87.822,87.723,114.8]
[1645940241104,3.67816784,87.822,87.726,2.76884081]
[1645940241307,3.67816784,87.822,87.727,119.357]
[1645940241504,3.67816784,87.822,87.728,2.84594406]
[1645940241706,3.67816784,87.822,87.729,4.557]
[1645940241906,3.67816784,87.822,87.73,114.8]
[1645940242305,3.67816784,87.822,87.731,2.70549204]
[1645940242605,3.67816784,87.822,87.731,5.45228125]
[1645940242805,3.67816784,87.822,87.732,2.74678921]
[1645940244907,3.67816784,87.822,87.732,5.16177643]
[1645940245507,3.67816784,87.822,87.733,2.74678921]
[1645940245709,3.67816784,87.822,87.734,114.8]
[1645940245909,3.67816784,87.822,87.735,2.94888485]
[1645940246109,3.67816784,87.822,87.736,4.556]
[1645940246312,17.0936,87.85,87.736,4.556]
[1645940246612,4.556,87.854,87.742,2.27456075]
[1645940246809,4.555,87.878,87.744,114.8]
[1645940247009,1.40748398,87.889,87.746,114.8]
[1645940247209,4.555,87.893,87.761,114.8]
[1645940247409,4.555,87.893,87.76,16.57]
[1645940247410,255.54662029,87.86,87.763,114.8]
[1645940247612,0.47607982,87.86,87.765,114.8]
[1645940247811,0.47607982,87.86,87.781,114.8]
[1645940248011,0.47607982,87.86,87.791,114.8]
[1645940248211,0.47607982,87.86,87.792,3.00573298]
[1645940248411,0.47607982,87.86,87.793,57.90528646]
[1645940248613,0.47607982,87.86,87.794,2.6695213]
[1645940248819,0.47607982,87.86,87.795,24.7085]
[1645940262853,0.47607982,87.86,87.796,114.8]
[1645940263056,0.47607982,87.86,87.797,2.93646864]
[1645940263256,0.47607982,87.86,87.797,5.68325785]
[1645940263756,0.47607982,87.86,87.798,2.74678921]
[1645940264362,0.47607982,87.86,87.802,2.97438705]
[1645940264657,4.554,87.948,87.805,2.33778462]
[1645940264856,16.8788,87.939,87.821,114.8]
[1645940265058,3.08769381,87.917,87.823,163.19154203]
[1645940265257,3.08769381,87.917,87.824,2.89395869]
[1645940265659,3.08769381,87.917,87.824,5.6407479]
[1645940265958,3.08769381,87.917,87.825,2.74678921]
[1645940266159,3.08769381,87.917,87.831,114.8]
[1645940266361,3.08769381,87.917,87.832,3.08285532]
[1645940266661,6.12957752,87.948,87.834,2.29897932]
[1645940266865,1.37746958,87.959,87.834,2.29897932]
[1645940267160,1.37746958,87.959,87.835,2.74678921]
[1645940267562,6.22753863,87.958,87.835,2.74678921]
[1645940269066,2.74678921,87.957,87.835,2.74678921]
[1645940269667,24.66189522,87.956,87.835,2.74678921]
[1645940270066,4.55037828,87.955,87.835,2.74678921]
[1645940270266,28.01616724,87.955,87.835,2.74678921]
[1645940270466,1.8495709,87.953,87.835,2.74678921]
[1645940270866,2.74678921,87.952,87.835,2.74678921]
[1645940271068,4.3519119,87.952,87.835,2.74678921]
[1645940271469,17.0744,87.95,87.835,2.74678921]
[1645940271669,17.0744,87.95,87.834,2.29897932]
[1645940271670,6.34554651,87.949,87.834,2.29897932]
[1645940271869,43.87382322,87.949,87.834,2.29897932]
[1645940272073,26.45492001,87.948,87.833,23.3349]
[1645940272270,6.08538132,87.947,87.833,23.3349]
[1645940272471,33.49406575,87.947,87.833,23.3349]
[1645940272670,57.21380861,87.946,87.833,23.3349]
[1645940272870,17.0803,87.92,87.833,23.3349]
[1645940273172,17.0803,87.92,87.831,22.5318]
[1645940273173,0.45113053,87.918,87.822,27.34657076]
[1645940273572,0.45113053,87.918,87.822,142.14657076]
[1645940273771,2.74678921,87.917,87.824,3.10448029]
[1645940273971,2.74678921,87.917,87.826,2.48651681]
[1645940278378,25.16542855,87.916,87.826,2.48651681]
[1645940278577,1.40162537,87.915,87.826,2.48651681]
[1645940278778,4.14841458,87.915,87.826,2.48651681]
[1645940278993,25.16542855,87.914,87.825,23.2247]
[1645940279194,16.57,87.91,87.825,23.2247]
[1645940279396,1.83807667,87.909,87.825,23.2247]
[1645940279696,4.58486588,87.909,87.825,23.2247]
[1645940279893,1.83807667,87.909,87.825,23.2247]
[1645940280095,2.74678921,87.908,87.825,23.2247]
[1645940280494,2.74678921,87.908,87.822,24.5488]
[1645940283097,427.24376387,87.933,87.823,2.35382899]
[1645940283297,427.24376387,87.933,87.824,114.8]
[1645940283499,427.24376387,87.933,87.825,2.5077217]
[1645940283699,427.24376387,87.933,87.841,114.8]
[1645940283897,427.24376387,87.933,87.843,2.5102523]
[1645940284098,427.24376387,87.933,87.844,2.57900536]
[1645940284298,427.24376387,87.933,87.844,19.09827072]
[1645940284598,427.24376387,87.933,87.845,114.8]
[1645940284800,2.83888044,87.942,87.846,2.83213124]
[1645940284997,2.83888044,87.942,87.852,2.61844031]
[1645940285599,2.83888044,87.942,87.854,2.99170718]
[1645940285800,2.83888044,87.942,87.855,3.00920054]
[1645940286100,2.83888044,87.942,87.857,3.09600499]
[1645940286701,1.67268676,87.956,87.858,2.74678921]
[1645940287703,2.80196156,87.955,87.858,2.74678921]
[1645940288502,2.30196156,87.955,87.858,2.74678921]
[1645940288701,2.30196156,87.955,87.859,42.69250318]
[1645940288902,2.30196156,87.955,87.861,2.8674651]
[1645940289704,2.30196156,87.955,87.862,2.74678921]
[1645940291408,1.52664122,87.979,87.862,46.66885916]
[1645940291706,1.52664122,87.979,87.864,2.76354544]
[1645940292106,1.52664122,87.979,87.866,2.36404422]
[1645940292306,3.12068794,87.978,87.881,159.95660467]
[1645940292509,3.12068794,87.978,87.884,2.50832902]
[1645940292906,48.9005,87.989,87.884,2.50832902]
[1645940293107,48.9005,87.989,87.885,2.74678921]
[1645940293407,4.548,88.011,87.901,117.12374772]
[1645940293607,1.60880584,88.019,87.901,117.12374772]
[1645940293608,53.92330584,88.019,87.902,2.54657841]
[1645940293808,52.3145,88.019,87.902,5.29336762]
[1645940294007,2.92221772,88.018,87.905,2.70433948]
[1645940294207,2.92221772,88.018,87.923,114.8]
[1645940294408,2.92221772,88.018,87.931,114.8]
[1645940294607,2.92221772,88.018,87.932,2.71038416]
[1645940295509,4.49876186,88.018,87.932,2.71038416]
[1645940296109,4.49876186,88.018,87.924,50.66888921]
[1645940296309,4.49876186,88.018,87.925,2.75517736]
[1645940299112,4.49876186,88.018,87.926,48.49244542]
[1645940299815,4.49876186,88.018,87.927,114.8]
[1645940300017,4.49876186,88.018,87.928,3.06951016]
[1645940303723,17.063,88.01,87.924,47.9221]
[1645940303920,1.61665372,88.009,87.924,47.9221]
[1645940304522,1.61665372,88.009,87.891,114.8]
[1645940304720,24.7265,88.008,87.904,45.24176331]
[1645940304921,1.47560738,88.007,87.905,2.30515791]
[1645940308726,1.47560738,88.007,87.906,2.40293365]
[1645940310928,1.47560738,88.007,87.96,1.0]
[1645940311329,1.7712123,88.007,87.96,1.0]
[1645940311632,1.80869624,88.016,87.96,1.0]
[1645940318956,23.25911431,88.015,87.96,1.0]
[1645940319156,1.85136119,88.014,87.96,1.0]
[1645940319556,25.1104755,88.014,87.96,1.0]
[1645940319756,1.70317196,88.013,87.96,1.0]
[1645940320160,24.96228627,88.013,87.96,1.0]
[1645940320357,1.75506834,88.012,87.96,1.0]
[1645940320761,25.01418265,88.012,87.96,1.0]
[1645940320958,1.7288589,88.011,87.96,1.0]
[1645940321162,1.63900831,88.009,87.96,1.0]
[1645940321760,23.25911431,88.008,87.96,1.0]
[1645940321962,1.38318204,88.007,87.96,1.0]
[1645940326967,16.57,88.01,87.96,1.0]
[1645940328170,1.79627928,88.009,87.96,1.0]
[1645940330073,16.57,88.01,87.96,1.0]
[1645940334776,16.6219,88.014,87.96,59.82962738]
[1645940335375,24.4902,88.03,87.961,2.93488088]
[1645940335775,23.25911431,88.041,87.962,24.8435]
[1645940335974,46.166,88.049,87.963,117.83476606]
[1645940336178,46.166,88.049,87.965,117.18682291]
[1645940336377,354.16454226,88.05,87.965,117.18682291]
[1645940336378,354.16454226,88.05,87.966,2.37424754]
[1645940336579,354.16454226,88.05,87.971,114.8]
[1645940336777,354.16454226,88.05,87.972,2.44895329]
[1645940337178,331.66454226,88.05,87.972,2.44895329]
[1645940337380,319.59780829,88.05,87.974,169.50145725]
[1645940337579,9.36005578,88.126,87.99,207.14]
[1645940337878,4.543,88.126,88.001,114.8]
[1645940338077,16.0393,88.14,88.002,2.9164597]
[1645940338278,33.2702,88.14,88.003,114.8]
[1645940338477,3.16878684,88.139,88.005,114.8]
[1645940338680,3.16878684,88.139,88.01,17.0347]
[1645940338898,3.16878684,88.139,88.023,114.8]
[1645940339279,3.16878684,88.139,88.024,2.79291266]
[1645940339478,3.16878684,88.139,88.026,2.55572672]
[1645940339679,47.9064,88.153,88.041,114.8]
[1645940339977,47.9064,88.153,88.042,2.81743335]
[1645940340179,47.9064,88.153,88.043,114.8]
[1645940340379,47.9064,88.153,88.043,117.54678921]
[1645940340591,47.9064,88.153,88.045,114.8]
[1645940340783,47.9064,88.153,88.051,114.8]
[1645940340981,47.9064,88.153,88.052,2.7065094]
[1645940342183,47.9064,88.153,88.053,114.8]
[1645940342382,47.9064,88.153,88.054,3.0624263]
[1645940342783,1.64764067,88.152,88.054,3.0624263]
[1645940343183,1.64764067,88.152,88.055,34.90888506]
[1645940343383,1.64764067,88.152,88.056,114.8]
[1645940343585,47.9064,88.153,88.059,114.8]
[1645940343787,47.9064,88.153,88.062,2.33268222]
[1645940344387,47.9064,88.153,88.063,34.90888506]
[1645940344587,47.9064,88.153,88.064,2.93137709]
[1645940344787,47.9064,88.153,88.065,114.8]
[1645940344987,47.9064,88.153,88.066,3.01680356]
[1645940345189,47.9064,88.153,88.067,114.8]
[1645940345388,24.8071,88.177,88.071,114.8]
[1645940345587,24.8071,88.177,88.072,2.72917982]
[1645940345789,3.40573526,88.176,88.074,2.51610126]
[1645940345992,5.12163347,88.176,88.074,2.51610126]
[1645940346189,25.16148257,88.151,88.072,50.32412808]
[1645940346413,2.74678921,88.148,88.072,50.32412808]
[1645940346590,33.28544307,88.148,88.072,50.32412808]
[1645940346888,1.72924972,88.146,88.042,2.26873781]
[1645940347090,4.54,88.145,88.032,114.8]
[1645940347289,4.54,88.145,88.033,2.35773866]
[1645940347290,1.44322808,88.144,88.033,2.35773866]
[1645940347490,16.57,88.14,88.033,2.35773866]
[1645940347690,6.22562577,88.139,88.035,2.92921631]
[1645940347890,1.83617461,88.138,88.034,50.31478874]
[1645940348091,4.541,88.137,88.034,50.31478874]
[1645940348290,1.42095544,88.137,88.034,50.31478874]
[1645940348491,11.1406024,88.136,88.021,3.08134916]
[1645940348692,1.66627606,88.133,88.002,3.06394271]
[1645940348895,116.55976451,88.119,88.002,3.06394271]
[1645940349093,16.57,88.11,87.96,1.0]
[1645940349392,1.83650612,88.108,87.962,49.88834677]
[1645940349596,114.8,88.103,87.962,52.69232355]
[1645940349793,16.57,88.09,87.963,2.47558358]
[1645940349992,16.57,88.08,87.963,2.47558358]
[1645940350200,1.62332857,88.079,87.963,2.47558358]
[1645940350394,4.543,88.078,87.963,2.47558358]
[1645940350595,17.0552,88.05,87.963,2.47558358]
[1645940350793,1.62104687,88.049,87.963,2.47558358]
[1645940350992,1.62104687,88.049,87.96,1.0]
[1645940350993,4.36783608,88.049,87.96,1.0]
[1645940351195,16.57,88.04,87.96,1.0]
[1645940351396,1.4292338,88.039,87.96,1.0]
[1645940351694,17.0599,88.02,87.96,1.0]
[1645940351896,16.0599,88.02,87.96,1.0]
[1645940352095,2.74678921,88.019,87.96,1.0]
[1645940352294,4.26576946,88.019,87.96,1.0]
[1645940352697,2.74678921,88.018,87.96,1.0]
[1645940352896,11.21678921,88.018,87.96,1.0]
[1645940353096,1.36792699,88.017,87.96,1.0]